fUSD/lending_fUSD_20240620
["ID","MTS","AMOUNT","RATE_DAILY","PERIOD"]
[329972986,1718885437177,-500.0,0.00013972,2]
[329972987,1718885437186,-500.0,0.00013972,2]
[329972988,1718885437197,-500.0,0.00013972,2]
[329972989,1718885437206,-500.0,0.00013972,2]
[329972990,1718885437217,-500.0,0.00013972,2]
[329972991,1718885437227,-167.62432692,0.00013972,2]
[329972992,1718885437237,-2698.47,0.00013972,2]
[329972993,1718885437248,-500.0,0.00013972,2]
[329972994,1718885437257,-537.28855957,0.00013972,2]
[329972995,1718885437268,-500.0,0.00013972,2]
[329972996,1718885437278,-3720.13,0.00013972,2]
[329972997,1718885437289,-500.0,0.00013972,2]
[329972998,1718885437299,-500.0,0.00013972,2]
[329972999,1718885437310,-500.0,0.00013972,2]
[329973000,1718885437321,-500.0,0.00013972,2]
[329973001,1718885437332,-622.77,0.00013972,2]
[329973002,1718885437342,-500.0,0.00013972,2]
[329973003,1718885437352,-1067.74,0.00013972,2]
[329973004,1718885437362,-500.0,0.00013972,2]
[329973005,1718885437373,-500.0,0.00013972,2]
[329973006,1718885437384,-631.06,0.00013972,2]
[329973007,1718885437395,-1886.92,0.00013972,2]
[329973008,1718885437407,-500.0,0.00013972,2]
[329973009,1718885437420,-500.0,0.00013972,2]
[329973010,1718885437432,-500.0,0.00013972,2]
[329973011,1718885437444,-1123.561844,0.00013973,2]
[329973012,1718885437456,-584.92,0.00013988,2]
[329973013,1718885437467,-806.4,0.00013988,2]
[329973014,1718885437478,-842.79,0.00013988,2]
[329973015,1718885437491,-768.65,0.00013988,2]
[329973016,1718885437502,-1048.12,0.00013988,2]
[329973017,1718885437512,-500.0,0.00013988,2]
[329973018,1718885437523,-1562.72,0.00013988,2]
[329973019,1718885437534,-7921.84,0.00013988,2]
[329973020,1718885437544,-557.19,0.00013988,2]
[329973021,1718885437554,-1354.21,0.00013988,2]
[329973022,1718885437565,-10810.24,0.00013988,2]
[329973023,1718885437578,-782.53,0.00013988,2]
[329973024,1718885437588,-723.79,0.00013988,2]
[329973025,1718885437598,-1200.72,0.00013988,2]
[329973026,1718885437608,-4843.1633637,0.0001399,2]
[329973027,1718885437619,-726.3353629,0.0001399,2]
[329973028,1718885437631,-17259.9123999,0.0001399,2]
[329973029,1718885437640,-13399.68450645,0.00013991,2]
[329973030,1718885437650,-55068.78184265,0.00014,2]
[329973031,1718885437660,-462.0,0.00014,2]
[329973032,1718885437671,-462.0,0.00014,2]
[329973033,1718885437681,-462.0,0.00014,2]
[329973034,1718885437691,-462.0,0.00014,2]
[329973035,1718885437702,-462.0,0.00014,2]
[329973036,1718885437715,-462.0,0.00014,2]
[329973037,1718885437725,-462.0,0.00014,2]
[329973038,1718885437734,-462.0,0.00014,2]
[329973039,1718885437744,-462.0,0.00014,2]
[329973040,1718885437754,-462.0,0.00014,2]
[329973041,1718885437764,-462.0,0.00014,2]
[329973042,1718885437774,-246.0,0.00014,2]
[329973043,1718885437784,-246.0,0.00014,2]
[329973044,1718885437794,-246.0,0.00014,2]
[329973045,1718885437804,-462.0,0.00014,2]
[329973046,1718885437814,-246.0,0.00014,2]
[329973047,1718885437826,-462.0,0.00014,2]
[329973048,1718885437835,-246.0,0.00014,2]
[329973049,1718885437844,-246.0,0.00014,2]
[329973050,1718885437855,-462.0,0.00014,2]
[329973051,1718885437865,-246.0,0.00014,2]
[329973052,1718885437875,-462.0,0.00014,2]
[329973053,1718885437884,-246.0,0.00014,2]
[329973054,1718885437894,-462.0,0.00014,2]
[329973055,1718885437904,-246.0,0.00014,2]
[329973056,1718885437915,-462.0,0.00014,2]
[329973057,1718885437925,-246.0,0.00014,2]
[329973058,1718885437935,-462.0,0.00014,2]
[329973059,1718885437945,-246.0,0.00014,2]
[329973060,1718885437955,-246.0,0.00014,2]
[329973061,1718885437965,-246.0,0.00014,2]
[329973062,1718885437975,-246.0,0.00014,2]
[329973063,1718885437985,-246.0,0.00014,2]
[329973064,1718885437995,-246.0,0.00014,2]
[329973065,1718885438005,-246.0,0.00014,2]
[329973066,1718885438015,-246.0,0.00014,2]
[329973067,1718885438025,-218.0,0.00014,2]
[329973068,1718885438036,-218.0,0.00014,2]
[329973069,1718885438046,-771321.26073082,0.00014,2]
[329973070,1718885438097,-4631.34297496,0.00014,2]
[329973071,1718885438109,-630.10225962,0.00014,2]
[329973072,1718885438121,-530.865,0.00014,2]
[329973074,1718885438132,-536.42529915,0.00014,2]
[329973075,1718885438198,-7552.99627616,0.00014,2]
[329973076,1718885438215,-437.8405502,0.00014,2]
[329973077,1718885438228,-791.63952452,0.00014,2]
[329973078,1718885438241,-1299.4208445,0.00014,2]
[329973079,1718885438255,-421.94944597,0.00014,2]
[329973080,1718885438271,-471.77028453,0.00014,2]
[329973081,1718885438285,-6738.71209133,0.00014,2]
[329973082,1718885438314,-491.40445475,0.00014,2]
[329973083,1718885438331,-463.05,0.00014,2]
[329973084,1718885438346,-291.826501,0.00014,2]
[329973087,1718885440353,-2308.64643684,0.00014,2]
[329973088,1718885440365,-1599.50354593,0.00014,2]
[329973089,1718885440394,-292874.63777231,0.00014,2]
[329973090,1718885440407,-16156.97721624,0.00014,2]
[329973091,1718885440522,-6675.80754597,0.00014,2]
[329973092,1718885440537,-580.78844532,0.00014,2]
[329973093,1718885440552,-1163.382,0.00014,2]
[329973094,1718885440565,-17153.77267543,0.00014,2]
[329973095,1718885440581,-6435.52777831,0.00014,2]
[329973096,1718885440594,-428.61941707,0.00014,2]
[329973097,1718885440608,-3497.10364673,0.00014,2]
[329973098,1718885440622,-200.0,0.00014,2]
[329973099,1718885440634,-200.0,0.00014,2]
[329973100,1718885440645,-200.0,0.00014,2]
[329973101,1718885440656,-200.0,0.00014,2]
[329973102,1718885440670,-200.0,0.00014,2]
[329973103,1718885440681,-200.0,0.00014,2]
[329973104,1718885440695,-200.0,0.00014,2]
[329973105,1718885440709,-200.0,0.00014,2]
[329973106,1718885440721,-200.0,0.00014,2]
[329973107,1718885440732,-200.0,0.00014,2]
[329973108,1718885440744,-200.0,0.00014,2]
[329973109,1718885440755,-200.0,0.00014,2]
[329973110,1718885440766,-200.0,0.00014,2]
[329973111,1718885440776,-200.0,0.00014,2]
[329973113,1718885440787,-200.0,0.00014,2]
[329973114,1718885440797,-200.0,0.00014,2]
[329973115,1718885440808,-200.0,0.00014,2]
[329973116,1718885440819,-221.0,0.00014,2]
[329973117,1718885440830,-221.0,0.00014,2]
[329973118,1718885440841,-221.0,0.00014,2]
[329973119,1718885440852,-221.0,0.00014,2]
[329973120,1718885440863,-221.0,0.00014,2]
[329973121,1718885440874,-221.0,0.00014,2]
[329973122,1718885440884,-221.0,0.00014,2]
[329973123,1718885440895,-221.0,0.00014,2]
[329973124,1718885440907,-221.0,0.00014,2]
[329973125,1718885440919,-29001.68078125,0.00014,2]
[329973126,1718885440944,-1220.20775906,0.00014,2]
[329973127,1718885440957,-406.46916604,0.00014,2]
[329973128,1718885441685,-625.335,0.000139,2]
[329973129,1718885441828,-4256.08743204,0.000139,2]
[329973130,1718885441838,-4452.88927281,0.00014,2]
[329973131,1718885441862,-989.65991724,0.00014,2]
[329973132,1718885441874,-1469.90443385,0.00014,2]
[329973133,1718885441886,-805.26599995,0.00014,2]
[329973134,1718885441897,-746.54000001,0.00014,2]
[329973135,1718885441922,-11188.42004702,0.00014,2]
[329973136,1718885441934,-441.72500004,0.00014,2]
[329973137,1718885441945,-1075.18,0.00014,2]
[329973164,1718885446531,-500.0,0.00013698,2]
[329973165,1718885446540,-500.0,0.00013886,2]
[329973166,1718885446550,-1116.33453977,0.00013887,2]
[329973167,1718885446562,-2532.01049383,0.00013887,2]
[329973168,1718885446574,-433.98008709,0.00013887,2]
[329973169,1718885446590,-836.26487931,0.00013887,2]
[329973170,1718885446599,-505.69,0.00013899,2]
[329973171,1718885446608,-500.0,0.00013968,2]
[329973172,1718885446618,-807.67,0.00013971,2]
[329973173,1718885446634,-500.0,0.00013972,2]
[329973174,1718885446643,-2027.89268779,0.00014,2]
[329973175,1718885446671,-500.0,0.00013886,2]
[329973176,1718885446681,-17042.70841109,0.00014,2]
[329973177,1718885446700,-856.20926424,0.00014,2]
[329973178,1718885446713,-769.02819339,0.00014,2]
[329973179,1718885446726,-1499.90008,0.00014,2]
[329973180,1718885446737,-493.09011844,0.00014,2]
[329973181,1718885446753,-3694.55916163,0.00014,2]
[329973182,1718885446804,-255.637,0.00014,2]
[329973183,1718885446815,-959.66047797,0.00014,2]
[329973184,1718885446826,-1900.41,0.00014,2]
[329973185,1718885446840,-15228.53491843,0.00014,2]
[329973186,1718885446853,-1685.47391358,0.00014,2]
[329973187,1718885446883,-2111.77443602,0.00014,2]
[329973188,1718885446894,-3150.39333094,0.00014,2]
[329973196,1718885804677,-250.0,0.00012274,2]
[329973197,1718885804702,-485.81,0.00012285,2]
[329973198,1718885804727,-182.85,0.00012287,2]
[329973199,1718885897612,481.36,0.00010453,2]
[329973202,1718886002485,150.0,0.00010453,2]
[329973203,1718886002667,150.0,0.00010453,2]
[329973204,1718886002853,150.0,0.00010453,2]
[329973205,1718886003033,150.0,0.00010453,2]
[329973206,1718886003461,150.0,0.00010453,2]
[329973207,1718886003638,150.57673681,0.00010453,2]
[329973208,1718886327193,-250.0,0.00012335,2]
[329973209,1718886327217,-7119.16,0.00012346,2]
[329973210,1718886327240,-300.0,0.00012366,2]
[329973211,1718886327261,-4387.39,0.00012367,2]
[329973212,1718886327284,-481.36,0.00012717,2]
[329973213,1718886327307,-1112.5,0.00012964,2]
[329973214,1718886327331,-1112.5,0.00012967,2]
[329973215,1718886327354,-1112.5,0.00012971,2]
[329973216,1718886327376,-1112.5,0.00012974,2]
[329973217,1718886327397,-1112.5,0.00012978,2]
[329973218,1718886327424,-498.19,0.00012978,2]
[329973219,1718886327446,-299.99,0.00012981,2]
[329973220,1718886327468,-1101.41,0.00012981,2]
[329973249,1718886589246,433.22,0.00010668,2]
[329973262,1718886631793,-2924.59,0.0001257,2]
[329973263,1718886631803,-250.0,0.0001257,2]
[329973264,1718886631813,-12.28269,0.00012884,2]
[329973265,1718886631825,-400.0,0.00012884,2]
[329973266,1718886631838,-152.62070963,0.00012884,2]
[329973267,1718886631852,-433.22,0.00012932,2]
[329973268,1718886631862,-11.09,0.00012981,2]
[329973269,1718886631872,-1112.5,0.00012984,2]
[329973270,1718886631882,-1112.5,0.00012988,2]
[329973271,1718886631892,-1112.5,0.00012991,2]
[329973272,1718886631902,-960.56929147,0.00012995,2]
[329973273,1718886631973,-151.93070853,0.00012995,2]
[329973274,1718886631983,-1112.5,0.00012998,2]
[329973275,1718886631993,-999.43,0.00012998,2]
[329973276,1718886632003,-693.09846,0.00013,2]
[329973277,1718886632013,-1044.82451088,0.00013001,2]
[329973278,1718886632032,-67.67548912,0.00013001,2]
[329973279,1718886632047,-1112.5,0.00013005,2]
[329973280,1718886632056,-240.04451088,0.00013008,2]
[329973291,1718886638781,-872.45548912,0.00013008,2]
[329973292,1718886638791,-1112.5,0.00013012,2]
[329973293,1718886638800,-1112.5,0.00013015,2]
[329973294,1718886638810,-1112.5,0.00013019,2]
[329973295,1718886638820,-1112.5,0.00013022,2]
[329973296,1718886638829,-1112.5,0.00013025,2]
[329973297,1718886638839,-1112.5,0.00013029,2]
[329973298,1718886638849,-1000.0,0.00013056,2]
[329973299,1718886638859,-168.08,0.00013145,2]
[329973300,1718886638869,-1000.0,0.00013598,2]
[329973301,1718886638879,-558.49917968,0.00013688,2]
[329973302,1718886638891,-843.26879741,0.00013688,2]
[329973303,1718886638902,-483.66,0.00013688,2]
[329973304,1718886638938,-1454.0,0.00013688,2]
[329973305,1718886638949,-732.23905877,0.00013688,2]
[329973306,1718886639027,-169.68094133,0.00013688,2]
[329973307,1718886639040,-500.0,0.00013698,2]
[329973308,1718886639051,-500.0,0.00013698,2]
[329973309,1718886639061,-311.53,0.00013699,2]
[329973310,1718886639071,-174.57,0.00013699,2]
[329973311,1718886639081,-526.83,0.00013699,2]
[329973312,1718886639091,-150.0,0.00013753,2]
[329973313,1718886639104,-1026.67841696,0.00013786,2]
[329973314,1718886639116,-6885.3742379,0.00013787,2]
[329973315,1718886639129,-1028.97673526,0.00013787,2]
[329973316,1718886639142,-532.07786788,0.00013787,2]
[329973317,1718886639155,-806.08865896,0.00013787,2]
[329973318,1718886639166,-1000.0,0.00013787,2]
[329973320,1718886639178,-2095.93104628,0.00013797,2]
[329973322,1718886639189,-290.12695926,0.00013798,2]
[329973323,1718886639199,-267.58609358,0.00013799,2]
[329973325,1718886639210,-500.0,0.00013822,2]
[329973327,1718886639221,-500.0,0.00013831,2]
[329973328,1718886639231,-500.0,0.0001384,2]
[329973329,1718886639242,-500.0,0.00013849,2]
[329973331,1718886639252,-500.0,0.00013858,2]
[329973332,1718886639262,-39144.67228789,0.0001386,2]
[329973334,1718886639272,-3000.0,0.0001386,2]
[329973336,1718886639283,-300.0,0.00013864,2]
[329973338,1718886639292,-500.0,0.00013866,2]
[329973339,1718886639303,-500.0,0.00013875,2]
[329973341,1718886639312,-500.0,0.00013884,2]
[329973343,1718886639322,-500.0,0.00013886,2]
[329973345,1718886639333,-500.0,0.00013886,2]
[329973347,1718886639343,-500.0,0.00013886,2]
[329973349,1718886639356,-500.0,0.00013886,2]
[329973350,1718886639367,-500.0,0.00013886,2]
[329973352,1718886639378,-500.0,0.00013886,2]
[329973354,1718886639389,-500.0,0.00013886,2]
[329973356,1718886639399,-214.01675263,0.00013886,2]
[329973358,1718886639409,-500.0,0.00013886,2]
[329973359,1718886639419,-500.0,0.00013886,2]
[329973361,1718886639429,-500.0,0.00013886,2]
[329973363,1718886639439,-500.0,0.00013886,2]
[329973365,1718886639449,-500.0,0.00013886,2]
[329973367,1718886639459,-500.0,0.00013886,2]
[329973368,1718886639469,-995.0,0.00013886,2]
[329973370,1718886639479,-500.0,0.00013886,2]
[329973372,1718886639490,-500.0,0.00013886,2]
[329973374,1718886639499,-500.0,0.00013886,2]
[329973376,1718886639509,-500.0,0.00013886,2]
[329973377,1718886639519,-500.0,0.00013886,2]
[329973379,1718886639529,-500.0,0.00013886,2]
[329973381,1718886639539,-500.0,0.00013886,2]
[329973382,1718886639549,-500.0,0.00013886,2]
[329973384,1718886639560,-500.0,0.00013886,2]
[329973386,1718886639572,-500.0,0.00013886,2]
[329973388,1718886639582,-500.0,0.00013886,2]
[329973390,1718886639593,-222.66048133,0.00013886,2]
[329973391,1718886639605,-506.79,0.00013886,2]
[329973393,1718886639614,-500.0,0.00013886,2]
[329973395,1718886639624,-500.0,0.00013886,2]
[329973397,1718886639633,-500.0,0.00013886,2]
[329973399,1718886639643,-500.0,0.00013886,2]
[329973401,1718886639654,-500.0,0.00013886,2]
[329973402,1718886639664,-500.0,0.00013886,2]
[329973404,1718886639674,-500.0,0.00013886,2]
[329973406,1718886639685,-500.0,0.00013886,2]
[329973408,1718886639696,-500.0,0.00013886,2]
[329973411,1718886639706,-500.0,0.00013886,2]
[329973413,1718886639716,-500.0,0.00013886,2]
[329973415,1718886639727,-500.0,0.00013886,2]
[329973417,1718886639737,-500.0,0.00013886,2]
[329973419,1718886639747,-500.0,0.00013886,2]
[329973421,1718886639759,-500.0,0.00013886,2]
[329973423,1718886639769,-500.0,0.00013886,2]
[329973424,1718886639779,-500.0,0.00013886,2]
[329973425,1718886639790,-500.0,0.00013886,2]
[329973426,1718886639801,-500.0,0.00013886,2]
[329973427,1718886639811,-500.0,0.00013886,2]
[329973428,1718886639822,-500.0,0.00013886,2]
[329973429,1718886639832,-500.0,0.00013886,2]
[329973430,1718886639844,-500.0,0.00013886,2]
[329973431,1718886639857,-500.0,0.00013886,2]
[329973432,1718886639867,-500.0,0.00013886,2]
[329973433,1718886639877,-570.87,0.00013886,2]
[329973434,1718886639886,-500.0,0.00013886,2]
[329973435,1718886639896,-500.0,0.00013886,2]
[329973436,1718886639906,-200.0,0.00013888,2]
[329973437,1718886639917,-1000.0,0.00013888,2]
[329973439,1718886639927,-500.0,0.00013888,2]
[329973440,1718886639937,-200.0,0.00013888,2]
[329973442,1718886639947,-1000.0,0.00013892,2]
[329973444,1718886639958,-500.0,0.00013893,2]
[329973446,1718886639968,-895.96,0.00013896,2]
[329973448,1718886639978,-905.3,0.00013896,2]
[329973450,1718886639988,-500.0,0.00013896,2]
[329973452,1718886639998,-500.0,0.00013896,2]
[329973454,1718886640008,-9409.630232,0.00013896,2]
[329973456,1718886640024,-303.29325585,0.00013896,2]
[329973475,1718886640205,-1234.77609435,0.00013896,2]
[329973478,1718886640225,-975.50742252,0.00013896,2]
[329973489,1718886640610,-404.15299528,0.00013896,2]
[329973490,1718886640620,-660.99,0.00013896,2]
[329973491,1718886640630,-644.59,0.00013896,2]
[329973492,1718886640641,-1027.42,0.00013896,2]
[329973493,1718886640654,-963.83,0.00013896,2]
[329973494,1718886640664,-500.0,0.00013896,2]
[329973495,1718886640674,-1100.02897568,0.00013896,2]
[329973496,1718886640705,-1478.35102432,0.00013896,2]
[329973497,1718886640715,-500.0,0.00013896,2]
[329973498,1718886640725,-513.42,0.00013896,2]
[329973499,1718886640735,-182.41773007,0.00013896,2]
[329973500,1718886640754,-525.49226993,0.00013896,2]
[329973501,1718886640766,-1949.91,0.00013896,2]
[329973502,1718886640776,-527.86,0.00013896,2]
[329973503,1718886640787,-691.69,0.00013896,2]
[329973504,1718886640797,-2637.71,0.00013896,2]
[329973505,1718886640807,-500.0,0.00013896,2]
[329973506,1718886640817,-345.03773007,0.00013896,2]
[329973507,1718886640828,-700.21667497,0.00013896,2]
[329973508,1718886640841,-65.68559496,0.00013896,2]
[329973509,1718886640856,-500.0,0.00013896,2]
[329973510,1718886640866,-391.92040052,0.00013896,2]
[329973511,1718886640878,-359.48000001,0.00013896,2]
[329973512,1718886640890,-588.25655239,0.00013896,2]
[329973513,1718886640910,-270.59304708,0.00013896,2]
[329973514,1718886640921,-252.79895292,0.00013896,2]
[329973515,1718886640933,-1748.10104708,0.00013896,2]
[329973516,1718886640943,-1148.37,0.00013896,2]
[329973517,1718886640952,-855.01,0.00013896,2]
[329973518,1718886640963,-500.0,0.00013896,2]
[329973519,1718886640974,-1040.45,0.00013896,2]
[329973520,1718886640984,-5440.7,0.00013896,2]
[329973521,1718886640994,-1291.08,0.00013896,2]
[329973522,1718886641003,-1976.86,0.00013896,2]
[329973523,1718886641013,-1750.6,0.00013896,2]
[329973524,1718886641033,-1744.86,0.00013896,2]
[329973525,1718886641045,-406.14893053,0.00013896,2]
[329973526,1718886641057,-1523.79106947,0.00013896,2]
[329973527,1718886641066,-1973.99359925,0.00013896,2]
[329973528,1718886641079,-2773.42640075,0.00013896,2]
[329973529,1718886641089,-500.0,0.00013896,2]
[329973530,1718886641100,-2457.82,0.00013896,2]
[329973531,1718886641110,-894.13,0.00013896,2]
[329973532,1718886641120,-1268.24,0.00013896,2]
[329973533,1718886641129,-1655.61,0.00013896,2]
[329973534,1718886641138,-2591.47,0.00013896,2]
[329973535,1718886641147,-440.83147927,0.00013896,2]
[329973536,1718886641157,-1132.39,0.00013896,2]
[329973537,1718886641167,-2850.77,0.00013896,2]
[329973538,1718886641176,-568.53,0.00013896,2]
[329973539,1718886641186,-1220.0,0.00013896,2]
[329973540,1718886641195,-500.0,0.00013896,2]
[329973541,1718886641205,-4713.65,0.00013896,2]
[329973542,1718886641215,-500.0,0.00013896,2]
[329973543,1718886641224,-1672.98,0.00013896,2]
[329973544,1718886641233,-500.0,0.00013896,2]
[329973545,1718886641243,-2020.61,0.00013896,2]
[329973546,1718886641254,-750.2,0.00013897,2]
[329973547,1718886641264,-500.0,0.00013897,2]
[329973548,1718886641274,-500.0,0.00013897,2]
[329973549,1718886641283,-500.0,0.00013897,2]
[329973550,1718886641293,-1266.15,0.00013897,2]
[329973551,1718886641303,-500.0,0.00013897,2]
[329973552,1718886641312,-500.0,0.00013897,2]
[329973553,1718886641322,-500.0,0.00013897,2]
[329973554,1718886641331,-500.0,0.00013897,2]
[329973555,1718886641340,-500.0,0.00013897,2]
[329973556,1718886641353,-500.0,0.00013897,2]
[329973557,1718886641363,-500.0,0.00013897,2]
[329973558,1718886641372,-500.0,0.00013897,2]
[329973559,1718886641382,-500.0,0.00013897,2]
[329973560,1718886641391,-500.0,0.00013897,2]
[329973561,1718886641400,-500.0,0.00013897,2]
[329973562,1718886641409,-500.0,0.00013897,2]
[329973563,1718886641419,-500.0,0.00013897,2]
[329973564,1718886641428,-500.0,0.00013897,2]
[329973565,1718886641437,-500.0,0.00013897,2]
[329973566,1718886641446,-500.0,0.00013897,2]
[329973567,1718886641455,-500.0,0.00013897,2]
[329973568,1718886641465,-500.0,0.00013897,2]
[329973569,1718886641474,-500.0,0.00013897,2]
[329973570,1718886641483,-150.0,0.00013897,2]
[329973571,1718886641492,-500.0,0.00013897,2]
[329973572,1718886641501,-500.0,0.00013897,2]
[329973573,1718886641510,-626.39176017,0.00013897,2]
[329973574,1718886641520,-500.0,0.00013897,2]
[329973575,1718886641529,-500.0,0.00013897,2]
[329973576,1718886641539,-500.0,0.00013897,2]
[329973577,1718886641548,-500.0,0.00013897,2]
[329973578,1718886641558,-500.0,0.00013897,2]
[329973579,1718886641567,-500.0,0.00013897,2]
[329973580,1718886641577,-500.0,0.00013897,2]
[329973581,1718886641586,-500.0,0.00013897,2]
[329973582,1718886641595,-500.0,0.00013897,2]
[329973583,1718886641609,-781.63,0.00013897,2]
[329973584,1718886641618,-500.0,0.00013897,2]
[329973585,1718886641627,-505.93,0.00013897,2]
[329973586,1718886641637,-500.0,0.00013897,2]
[329973587,1718886641646,-500.0,0.00013897,2]
[329973588,1718886641655,-650.98,0.00013897,2]
[329973589,1718886641665,-500.0,0.00013897,2]
[329973590,1718886641674,-591.34,0.00013897,2]
[329973591,1718886641684,-537.98,0.00013897,2]
[329973592,1718886641694,-514.96,0.00013897,2]
[329973593,1718886641703,-500.0,0.00013897,2]
[329973594,1718886641713,-500.0,0.00013897,2]
[329973595,1718886641722,-500.0,0.00013897,2]
[329973596,1718886641731,-500.0,0.00013897,2]
[329973597,1718886641741,-500.0,0.00013897,2]
[329973598,1718886641751,-574.86,0.00013897,2]
[329973599,1718886641761,-500.0,0.00013897,2]
[329973600,1718886641771,-500.0,0.00013897,2]
[329973601,1718886641780,-500.0,0.00013897,2]
[329973602,1718886641789,-500.0,0.00013897,2]
[329973603,1718886641799,-564.71,0.00013897,2]
[329973604,1718886641808,-609.27,0.00013897,2]
[329973605,1718886641817,-5204.48,0.00013897,2]
[329973606,1718886641827,-500.0,0.00013897,2]
[329973607,1718886641836,-542.76,0.00013897,2]
[329973608,1718886641846,-15841.39,0.00013897,2]
[329973609,1718886641859,-500.0,0.00013897,2]
[329973610,1718886641868,-500.0,0.00013897,2]
[329973611,1718886641877,-500.0,0.00013897,2]
[329973612,1718886641887,-500.0,0.00013897,2]
[329973613,1718886641896,-500.0,0.00013897,2]
[329973614,1718886641906,-500.0,0.00013897,2]
[329973615,1718886641915,-1221.12,0.00013897,2]
[329973616,1718886641923,-500.0,0.00013897,2]
[329973617,1718886641933,-500.0,0.00013897,2]
[329973618,1718886641943,-982.55,0.00013897,2]
[329973619,1718886641952,-4728.41,0.00013897,2]
[329973620,1718886641961,-500.0,0.00013897,2]
[329973621,1718886641970,-193.65480451,0.00013897,2]
[329973622,1718886641979,-500.0,0.00013897,2]
[329973623,1718886641988,-500.0,0.00013897,2]
[329973624,1718886641996,-1943.02,0.00013897,2]
[329973625,1718886642005,-500.0,0.00013897,2]
[329973626,1718886642015,-500.0,0.00013897,2]
[329973627,1718886642031,-500.0,0.00013897,2]
[329973628,1718886642041,-1817.72,0.00013897,2]
[329973629,1718886642050,-918.3,0.00013897,2]
[329973630,1718886642059,-500.0,0.00013897,2]
[329973631,1718886642069,-808.56,0.00013897,2]
[329973632,1718886642079,-500.0,0.00013897,2]
[329973633,1718886642088,-500.0,0.00013897,2]
[329973634,1718886642097,-500.0,0.00013897,2]
[329973635,1718886642112,-2473.6,0.00013897,2]
[329973636,1718886642122,-1450.35,0.00013897,2]
[329973637,1718886642131,-500.0,0.00013897,2]
[329973638,1718886642140,-500.0,0.00013897,2]
[329973639,1718886642150,-1746.46,0.00013897,2]
[329973640,1718886642160,-500.0,0.00013897,2]
[329973641,1718886642169,-2222.84,0.00013897,2]
[329973642,1718886642178,-3410.12,0.00013897,2]
[329973643,1718886642188,-500.0,0.00013897,2]
[329973644,1718886642197,-790.49,0.00013897,2]
[329973645,1718886642206,-1340.4,0.00013897,2]
[329973646,1718886642216,-578.47,0.00013897,2]
[329973647,1718886642226,-500.0,0.00013897,2]
[329973648,1718886642236,-1214.53,0.00013897,2]
[329973649,1718886642245,-874.87,0.00013897,2]
[329973650,1718886642254,-1450.47,0.00013897,2]
[329973651,1718886642265,-500.0,0.00013897,2]
[329973652,1718886642275,-500.0,0.00013897,2]
[329973653,1718886642284,-500.0,0.00013897,2]
[329973654,1718886642294,-500.0,0.00013897,2]
[329973655,1718886642303,-500.0,0.00013897,2]
[329973656,1718886642313,-500.0,0.00013897,2]
[329973657,1718886642322,-1469.92,0.00013897,2]
[329973658,1718886642331,-978.76,0.00013897,2]
[329973659,1718886642340,-500.0,0.00013897,2]
[329973660,1718886642349,-1232.27,0.00013897,2]